{"text_format":"1","workbook":"xlsx","n_sheets":2,"sheets":["Gennaio","Febbraio"],"not_rendered":{"charts":0,"images":4,"macros":1,"external_links":0,"defined_names":0,"comments":0,"pivot_tables":0},"unopened":[],"bounds":{"document_bytes":16777216,"sheet_cells":100000,"rows_first":2000,"rows_last":500,"rows_between":2000,"halvings":0,"cell_chars":16384,"cell_head_chars":4096},"cells_cut":0,"cells_raw":0,"read":"whole","date_system":"1900"}

{"sheet":"Gennaio","index":0,"n_rows":38,"n_cols":34,"rows_kept":38,"cut":false,"hidden":false,"merged":[[127,0,127,3],[75,0,75,3],[83,0,83,3],[93,0,93,3],[106,0,106,3],[113,0,113,3],[120,0,120,3],[69,0,69,3],[0,0,1,4],[2,0,2,4],[4,0,4,1],[4,2,4,3],[24,0,24,1],[27,0,27,1],[36,1,37,1],[36,2,37,2],[36,3,37,3],[56,0,56,3],[62,0,62,3]]}
[null,null,null,null,null,null,"Disponibile in Banca",null,null,"Ogni anno cambiare date ",null,"Colonne ","Colonne la U contiene Menu a cascata Feste, la Y numeri"]
[null,null,null,null,null,null,{"$f":"SUM(#REF!)","v":{"$error":"#REF!"}},null,null,"vedi Tabelle dopo Katia",null,"Nascoste","Colonne la W Formula \"Vero\"  - la AA,AB e AC le feste della colonna F"]
[null,null,null,null,null,null,{"$f":"NOW()","v":"2023-06-22T13:33:35.840"},12,null,12,null,12,null,12,null,12,null,12,null,12,null,12]
[null,null,null,null,null,null,2023,{"$f":"SUM(H3*H38)","v":0},null,{"$f":"SUM(J3*J38)","v":0},null,{"$f":"SUM(L3*L38)","v":0},null,{"$f":"SUM(N3*N38)","v":0},null,{"$f":"SUM(P3*P38)","v":0},null,{"$f":"SUM(R3*R38)","v":0},null,{"$f":"SUM(T3*T38)","v":0},null,{"$f":"SUM(V3*V38)","v":0},null,null,null,"Menu a cascata",null,null,null,"Menu numeri"]
[null,null,null,null,null,null,"Mese","CARLA",null,"Ingrid",null,"Serena",null,"Gloria",null,"Susanna",null,"Ramona",null,"Bulferi",null,"Giada",null,"nuovo",null,"a",null,null,null,1]
[null,null,null,null,null,null,"Gennaio","Mattina",null,"Mattina",null,null,null,"Pomeriggio14:30",null,"Pomeriggio 14:30",null,"Pomeriggio14:30",null,"Mattina",null,"Mattina",null,null,null,"zz",null,null,null,2,null,"Capodanno","2023-01-01","Gennaio"]
[null,null,null,null,null,{"$f":"DATE(G4,MONTH(G6&1),1)","v":"2023-01-01"},{"$f":"TEXT(F7,\"gggg\")","v":"domenica"},null,null,null,null,null,null,null,null,null,null,null,null,null,null,null,null,null,null,"cc",null,null,null,3,null,"Epifania","2023-01-06","Febbraio"]
[null,null,null,null,null,{"$f":"IFERROR(IF(MONTH(F7+1)<>MONTH(F7),\"\",F7+1),\"\")","v":"2023-01-02"},{"$f":"TEXT(F8,\"gggg\")","v":"lunedì"},null,null,null,null,null,null,null,null,null,null,null,null,null,null,null,null,null,null,"cc",null,null,null,4,null,"Pasqua","2023-04-09","Aprile"]
[null,null,null,null,null,{"$f":"IFERROR(IF(MONTH(F8+1)<>MONTH(F8),\"\",F8+1),\"\")","v":"2023-01-03"},"martedì",null,null,null,null,null,null,null,null,null,null,null,null,null,null,null,null,null,null,"gg",null,null,null,5,null,"Lunedì di Pasqua","2023-04-10","Aprile"]
[null,null,null,null,null,"2023-01-04","mercoledì",null,null,null,null,null,null,null,null,null,null,null,null,null,null,null,null,null,null,"gg",null,null,null,0.5,null,"Festa della Liberazione","2023-04-25","Aprile"]
[null,null,null,null,null,"2023-01-05","giovedì",null,null,null,null,null,null,null,null,null,null,null,null,null,null,null,null,null,null,"ss",null,{"$f":"OR(WEEKDAY($F7,2)>5,COUNTIF($AG$6:$AG$19,$F7)=1)","v":true},null,1.5,null,"1° Maggio","2023-05-01","Maggio"]
[null,null,null,null,null,"2023-01-06","venerdì",null,null,null,null,null,null,null,null,null,null,null,null,null,null,null,null,null,null,"ddd",null,null,null,2.5,null,"Festa della Repubblica","2023-06-02","Giugno"]
[null,null,null,null,null,"2023-01-07","sabato",null,null,null,null,null,null,null,null,null,null,null,null,null,null,null,null,null,null,"ddd",null,null,null,3.5,null,"Ferragosto","2023-08-15","Agosto"]
[null,null,null,null,null,"2023-01-08","domenica",null,null,null,null,null,null,null,null,null,null,null,null,null,null,null,null,null,null,"ddd",null,null,null,4.5,null,"Tutti i Santi","2023-11-01","Novembre"]
[null,null,null,null,null,"2023-01-09","lunedì",null,null,null,null,null,null,null,null,null,null,null,null,null,null,null,null,null,null,"Capodanno",null,null,null,5.5,null,"Immacolata","2023-12-08","Dicembre"]
[null,null,null,null,null,"2023-01-10","martedì",null,null,null,null,null,null,null,null,null,null,null,null,null,null,null,null,null,null,"Epifania",null,null,null,null,null,"Natale","2023-12-25","Dicembre"]
[null,null,null,null,null,"2023-01-11","mercoledì",null,null,null,null,null,null,null,null,null,null,null,null,null,null,null,null,null,null,"Liberazione",null,null,null,null,null,"Santo Stefano","2023-12-26","Dicembre"]
[null,null,null,null,null,"2023-01-12","giovedì",null,null,null,null,null,null,null,null,null,null,null,null,null,null,null,null,null,null,"Pasqua",null,null,null,null,null,"Patrono Bolzano","2023-05-29","Maggio"]
[null,null,null,null,null,"2023-01-13","venerdì",null,null,null,null,null,null,null,null,null,null,null,null,null,null,null,null,null,null,"Luned' di Pasqua"]
[null,null,null,null,null,"2023-01-14","sabato",null,null,null,null,null,null,null,null,null,null,null,null,null,null,null,null,null,null,"Patrono"]
[null,null,null,null,null,"2023-01-15","domenica",null,null,null,null,null,null,null,null,null,null,null,null,null,null,null,null,null,null,"1° Maggio"]
[null,null,null,null,null,"2023-01-16","lunedì",null,null,null,null,null,null,null,null,null,null,null,null,null,null,null,null,null,null,"Repubblica"]
[null,null,null,null,null,"2023-01-17","martedì",null,null,null,null,null,null,null,null,null,null,null,null,null,null,null,null,null,null,"Ferragosto"]
[null,null,null,null,null,"2023-01-18","mercoledì",null,null,null,null,null,null,null,null,null,null,null,null,null,null,null,null,null,null,"Tutti i Santi"]
[null,null,null,null,null,"2023-01-19","giovedì",null,null,null,null,null,null,null,null,null,null,null,null,null,null,null,null,null,null,"Immacolata"]
[null,null,null,null,null,"2023-01-20","venerdì",null,null,null,null,null,null,null,null,null,null,null,null,null,null,null,null,null,null,"Natale"]
[null,null,null,null,null,"2023-01-21","sabato",null,null,null,null,null,null,null,null,null,null,null,null,null,null,null,null,null,null,"Santo Stefano"]
[null,null,null,null,null,"2023-01-22","domenica",null,null,null,null,null,null,null,null,null,null,null,null,null,null,null,null,null,null,"Libero"]
[null,null,null,null,null,"2023-01-23","lunedì",null,null,null,null,null,null,null,null,null,null,null,null,null,null,null,null,null,null,"Libero"]
[null,null,null,null,null,"2023-01-24","martedì",null,null,null,null,null,null,null,null,null,null,null,null,null,null,null,null,null,null,"Libero"]
[null,null,null,null,null,"2023-01-25","mercoledì"]
[null,null,null,null,null,"2023-01-26","giovedì"]
[null,null,null,null,null,"2023-01-27","venerdì"]
[null,null,null,null,null,"2023-01-28","sabato"]
[null,null,null,null,null,"2023-01-29","domenica"]
[null,null,null,null,null,"2023-01-30","lunedì"]
[null,null,null,null,null,"2023-01-31","martedì"]
[null,null,null,null,null,null,null,{"$f":"SUM(H7:H37)","v":0},null,{"$f":"SUM(J7:J37)","v":0},null,{"$f":"SUM(L7:L37)","v":0},null,{"$f":"SUM(N7:N37)","v":0},null,{"$f":"SUM(P7:P37)","v":0},null,{"$f":"SUM(R7:R37)","v":0},null,{"$f":"SUM(T7:T37)","v":0},null,{"$f":"SUM(V7:V37)","v":0},null,{"$f":"SUM(X7:X37)","v":0}]

{"sheet":"Febbraio","index":1,"n_rows":38,"n_cols":33,"rows_kept":38,"cut":false,"hidden":false,"merged":[[127,0,127,3],[75,0,75,3],[83,0,83,3],[93,0,93,3],[106,0,106,3],[113,0,113,3],[120,0,120,3],[69,0,69,3],[0,0,1,4],[2,0,2,4],[4,0,4,1],[4,2,4,3],[24,0,24,1],[27,0,27,1],[36,1,37,1],[36,2,37,2],[36,3,37,3],[56,0,56,3],[62,0,62,3]]}
[null,null,null,null,null,null,"Disponibile in Banca"]
[null,null,null,null,null,null,{"$f":"SUM(#REF!)","v":{"$error":"#REF!"}}]
[null,null,null,null,null,null,{"$f":"NOW()","v":"2023-06-22T13:33:35.840"},12,null,12,null,12,null,12,null,12,null,12,null,12,null,12]
[null,null,null,null,null,null,2023,{"$f":"SUM(H3*H38)","v":0},null,{"$f":"SUM(J3*J38)","v":0},null,{"$f":"SUM(L3*L38)","v":0},null,{"$f":"SUM(N3*N38)","v":0},null,{"$f":"SUM(P3*P38)","v":0},null,{"$f":"SUM(R3*R38)","v":0},null,{"$f":"SUM(T3*T38)","v":0},null,{"$f":"SUM(V3*V38)","v":0},null,null,"Menu a cascata",null,null,null,"Menu numeri"]
[null,null,null,null,null,null,"Mese","CARLA",null,"Ingrid",null,"Serena",null,"Gloria",null,"Susanna",null,"Ramona",null,"Bulferi",null,"Giada",null,null,"ff",null,null,null,1]
[null,null,null,null,null,null,"Febbraio","Mattina",null,"Mattina",null,4,null,"Pomeriggio14:30",null,"Pomeriggio 14:30",null,"Pomeriggio14:30",null,"Mattina",null,"Mattina",null,null,"ff",null,null,null,2,null,"Capodanno","2023-01-01","Gennaio"]
[null,null,null,null,null,{"$f":"DATE(G4,MONTH(G6&1),1)","v":"2023-02-01"},{"$f":"TEXT(F7,\"gggg\")","v":"mercoledì"},null,null,null,null,null,null,null,null,null,null,null,null,null,null,null,null,null,"hh",null,null,null,3,null,"Epifania","2023-01-06","Febbraio"]
[null,null,null,null,null,{"$f":"IFERROR(IF(MONTH(F7+1)<>MONTH(F7),\"\",F7+1),\"\")","v":"2023-02-02"},{"$f":"TEXT(F8,\"gggg\")","v":"giovedì"},null,null,null,null,null,null,null,null,null,null,null,null,null,null,null,null,null,"dd",null,null,null,4,null,"Pasqua","2023-04-09","Aprile"]
[null,null,null,null,null,{"$f":"IFERROR(IF(MONTH(F8+1)<>MONTH(F8),\"\",F8+1),\"\")","v":"2023-02-03"},"venerdì",null,null,null,null,null,null,null,null,null,null,null,null,null,null,null,null,null,"sf",null,null,null,5,null,"Lunedì di Pasqua","2023-04-10","Aprile"]
[null,null,null,null,null,"2023-02-04","sabato",null,null,null,null,null,null,null,null,null,null,null,null,null,null,null,null,null,"dd",null,null,null,0.5,null,"Festa della Liberazione","2023-04-25","Aprile"]
[null,null,null,null,null,"2023-02-05","domenica",null,null,null,null,null,null,null,null,null,null,null,null,null,null,null,null,null,"a",null,{"$f":"OR(WEEKDAY($F7,2)>5,COUNTIF($AF$6:$AF$19,$F7)=1)","v":false},null,1.5,null,"1° Maggio","2023-05-01","Maggio"]
[null,null,null,null,null,"2023-02-06","lunedì",null,null,null,null,null,null,null,null,null,null,null,null,null,null,null,null,null,"d",null,null,null,2.5,null,"Festa della Repubblica","2023-06-02","Giugno"]
[null,null,null,null,null,"2023-02-07","martedì",null,null,null,null,null,null,null,null,null,null,null,null,null,null,null,null,null,"b",null,null,null,3.5,null,"Ferragosto","2023-08-15","Agosto"]
[null,null,null,null,null,"2023-02-08","mercoledì",null,null,null,null,null,null,null,null,null,null,null,null,null,null,null,null,null,"a",null,null,null,4.5,null,"Tutti i Santi","2023-11-01","Novembre"]
[null,null,null,null,null,"2023-02-09","giovedì",null,null,null,null,null,null,null,null,null,null,null,null,null,null,null,null,null,"Capodanno",null,null,null,5.5,null,"Immacolata","2023-12-08","Dicembre"]
[null,null,null,null,null,"2023-02-10","venerdì",null,null,null,null,null,null,null,null,null,null,null,null,null,null,null,null,null,"Epifania",null,null,null,null,null,"Natale","2023-12-25","Dicembre"]
[null,null,null,null,null,"2023-02-11","sabato",null,null,null,null,null,null,null,null,null,null,null,null,null,null,null,null,null,"Liberazione",null,null,null,null,null,"Santo Stefano","2023-12-26","Dicembre"]
[null,null,null,null,null,"2023-02-12","domenica",null,null,null,null,null,null,null,null,null,null,null,null,null,null,null,null,null,"Pasqua",null,null,null,null,null,"Patrono Bolzano","2023-05-29","Maggio"]
[null,null,null,null,null,"2023-02-13","lunedì",null,null,null,null,null,null,null,null,null,null,null,null,null,null,null,null,null,"Luned' di Pasqua"]
[null,null,null,null,null,"2023-02-14","martedì",null,null,null,null,null,null,null,null,null,null,null,null,null,null,null,null,null,"Patrono"]
[null,null,null,null,null,"2023-02-15","mercoledì",null,null,null,null,null,null,null,null,null,null,null,null,null,null,null,null,null,"1° Maggio"]
[null,null,null,null,null,"2023-02-16","giovedì",null,null,null,null,null,null,null,null,null,null,null,null,null,null,null,null,null,"Repubblica"]
[null,null,null,null,null,"2023-02-17","venerdì",null,null,null,null,null,null,null,null,null,null,null,null,null,null,null,null,null,"Ferragosto"]
[null,null,null,null,null,"2023-02-18","sabato",null,null,null,null,null,null,null,null,null,null,null,null,null,null,null,null,null,"Tutti i Santi"]
[null,null,null,null,null,"2023-02-19","domenica",null,null,null,null,null,null,null,null,null,null,null,null,null,null,null,null,null,"Immacolata"]
[null,null,null,null,null,"2023-02-20","lunedì",null,null,null,null,null,null,null,null,null,null,null,null,null,null,null,null,null,"Natale"]
[null,null,null,null,null,"2023-02-21","martedì",null,null,null,null,null,null,null,null,null,null,null,null,null,null,null,null,null,"Santo Stefano"]
[null,null,null,null,null,"2023-02-22","mercoledì",null,null,null,null,null,null,null,null,null,null,null,null,null,null,null,null,null,"Libero"]
[null,null,null,null,null,"2023-02-23","giovedì",null,null,null,null,null,null,null,null,null,null,null,null,null,null,null,null,null,"Libero"]
[null,null,null,null,null,"2023-02-24","venerdì",null,null,null,null,null,null,null,null,null,null,null,null,null,null,null,null,null,"Libero"]
[null,null,null,null,null,"2023-02-25","sabato"]
[null,null,null,null,null,"2023-02-26","domenica"]
[null,null,null,null,null,"2023-02-27","lunedì"]
[null,null,null,null,null,"2023-02-28","martedì"]
[null,null,null,null,null,"",""]
[]
[]
[null,null,null,null,null,null,null,{"$f":"SUM(H7:H37)","v":0},null,{"$f":"SUM(J7:J37)","v":0},null,{"$f":"SUM(L7:L37)","v":0},null,{"$f":"SUM(N7:N37)","v":0},null,{"$f":"SUM(P7:P37)","v":0},null,{"$f":"SUM(R7:R37)","v":0},null,{"$f":"SUM(T7:T37)","v":0},null,{"$f":"SUM(V7:V37)","v":0}]